[Event "Early-Titled-Tuesday-Blitz-April-23-2024"]
[Site "Chess.com"]
[Date "2024.04.23"]
[Round "2"]
[White "wqws"]
[Black "soupeOchoux"]
[Result "1/2-1/2"]
[WhiteElo "2720"]
[BlackElo "2410"]
[TimeControl "180+1"]
[EndTime "8:18:08 PDT"]
[Termination "Game drawn by stalemate"]

1. e4 {[%clk 0:03:00.9]} 1... c5 {[%clk 0:02:59.7]} 2. Nf3 {[%clk 0:03:00.3]}
2... g6 {[%clk 0:02:59.3]} 3. d4 {[%clk 0:02:58.7]} 3... cxd4 {[%clk 0:03:00.2]}
4. Nxd4 {[%clk 0:02:59.3]} 4... Bg7 {[%clk 0:02:59.7]} 5. c4 {[%clk 0:02:59.9]}
5... Nc6 {[%clk 0:03:00.2]} 6. Be3 {[%clk 0:03:00.5]} 6... Nf6 {[%clk
0:02:59.8]} 7. Nc3 {[%clk 0:03:01.1]} 7... O-O {[%clk 0:02:59.4]} 8. Be2 {[%clk
0:03:00.5]} 8... d6 {[%clk 0:02:59.9]} 9. Rc1 {[%clk 0:03:00.4]} 9... Nxd4
{[%clk 0:03:00.5]} 10. Bxd4 {[%clk 0:03:00.4]} 10... Be6 {[%clk 0:03:01.4]} 11.
Qd2 {[%clk 0:02:58.8]} 11... Qa5 {[%clk 0:03:01.2]} 12. O-O {[%clk 0:02:57.9]}
12... Rfc8 {[%clk 0:03:00.7]} 13. b3 {[%clk 0:02:57.5]} 13... Nxe4 {[%clk
0:03:00.3]} 14. Nxe4 {[%clk 0:02:52.2]} 14... Qxd2 {[%clk 0:03:00.2]} 15. Nxd2
{[%clk 0:02:53.1]} 15... Bxd4 {[%clk 0:03:00.3]} 16. Bf3 {[%clk 0:02:53.5]}
16... Rab8 {[%clk 0:02:59.5]} 17. a4 {[%clk 0:02:51.7]} 17... a6 {[%clk
0:02:58.2]} 18. Rfe1 {[%clk 0:02:51.4]} 18... Kf8 {[%clk 0:02:55.6]} 19. Re4
{[%clk 0:02:47.6]} 19... Bc5 {[%clk 0:02:53.2]} 20. Bg4 {[%clk 0:02:43.8]} 20...
Bxg4 {[%clk 0:02:50.5]} 21. Rxg4 {[%clk 0:02:44.7]} 21... b5 {[%clk 0:02:49.1]}
22. axb5 {[%clk 0:02:27.6]} 22... axb5 {[%clk 0:02:49.1]} 23. h4 {[%clk
0:02:27.1]} 23... h5 {[%clk 0:02:47.3]} 24. Re4 {[%clk 0:02:26.8]} 24... Bb4
{[%clk 0:02:47.5]} 25. Nf3 {[%clk 0:02:22.7]} 25... d5 {[%clk 0:02:45.7]} 26.
Rd4 {[%clk 0:02:22.4]} 26... e6 {[%clk 0:02:41.7]} 27. Ne5 {[%clk 0:02:17.4]}
27... Rb7 {[%clk 0:02:31.1]} 28. Nd3 {[%clk 0:02:14]} 28... Ba3 {[%clk
0:02:25.2]} 29. Ra1 {[%clk 0:02:12.4]} 29... bxc4 {[%clk 0:02:25]} 30. Rxa3
{[%clk 0:02:09.3]} 30... cxd3 {[%clk 0:02:23.2]} 31. Rxd3 {[%clk 0:02:10.2]}
31... Rc1+ {[%clk 0:02:21.4]} 32. Kh2 {[%clk 0:02:10.2]} 32... Rb1 {[%clk
0:02:21.5]} 33. Rf3 {[%clk 0:02:06.8]} 33... Kg7 {[%clk 0:02:20.5]} 34. g3
{[%clk 0:02:05.2]} 34... e5 {[%clk 0:02:16.3]} 35. Ra5 {[%clk 0:02:02.4]} 35...
Rd7 {[%clk 0:02:15.5]} 36. Rd3 {[%clk 0:02:00.5]} 36... e4 {[%clk 0:02:13.7]}
37. Rdxd5 {[%clk 0:02:00.2]} 37... Rxd5 {[%clk 0:02:13.7]} 38. Rxd5 {[%clk
0:02:01.1]} 38... Rxb3 {[%clk 0:02:14.1]} 39. Re5 {[%clk 0:02:00.8]} 39... f5
{[%clk 0:02:13.2]} 40. Re6 {[%clk 0:02:00.1]} 40... Rb2 {[%clk 0:02:08.3]} 41.
Kg1 {[%clk 0:01:55.6]} 41... Rc2 {[%clk 0:02:07.7]} 42. Ra6 {[%clk 0:01:55]}
42... Kf7 {[%clk 0:02:07.1]} 43. Kf1 {[%clk 0:01:54.6]} 43... Rc1+ {[%clk
0:02:05.7]} 44. Kg2 {[%clk 0:01:54.8]} 44... Rb1 {[%clk 0:02:06]} 45. Rc6 {[%clk
0:01:54.1]} 45... Rb2 {[%clk 0:02:06.1]} 46. Kg1 {[%clk 0:01:52.9]} 46... Rb3
{[%clk 0:02:03.3]} 47. Kg2 {[%clk 0:01:52.5]} 47... Rf3 {[%clk 0:02:01.7]} 48.
Ra6 {[%clk 0:01:51.6]} 48... Kg7 {[%clk 0:02:01.1]} 49. Rb6 {[%clk 0:01:51]}
49... Rd3 {[%clk 0:02:01.1]} 50. Rb7+ {[%clk 0:01:49.6]} 50... Kf6 {[%clk
0:01:59.9]} 51. Rb6+ {[%clk 0:01:49.9]} 51... Kg7 {[%clk 0:02:00.2]} 52. Rb7+
{[%clk 0:01:50.3]} 52... Kh6 {[%clk 0:02:00.4]} 53. Rb6 {[%clk 0:01:49.2]} 53...
Rd7 {[%clk 0:02:00.7]} 54. Ra6 {[%clk 0:01:48.6]} 54... Kg7 {[%clk 0:02:01.1]}
55. Rb6 {[%clk 0:01:48.5]} 55... Kf7 {[%clk 0:02:01.5]} 56. Ra6 {[%clk
0:01:48.9]} 56... Re7 {[%clk 0:02:02]} 57. Rb6 {[%clk 0:01:48.8]} 57... Re6
{[%clk 0:02:02.5]} 58. Rb7+ {[%clk 0:01:48.3]} 58... Kf6 {[%clk 0:02:02.9]} 59.
Rb5 {[%clk 0:01:48.5]} 59... Rc6 {[%clk 0:02:03.2]} 60. Ra5 {[%clk 0:01:48.3]}
60... Ke6 {[%clk 0:01:57.1]} 61. Rb5 {[%clk 0:01:47.6]} 61... Kd6 {[%clk
0:01:57.3]} 62. Ra5 {[%clk 0:01:47.6]} 62... Kc7 {[%clk 0:01:56.9]} 63. Rd5
{[%clk 0:01:41.6]} 63... Rd6 {[%clk 0:01:56.2]} 64. Rc5+ {[%clk 0:01:39.3]}
64... Kb6 {[%clk 0:01:55.2]} 65. Re5 {[%clk 0:01:39.4]} 65... Kc6 {[%clk
0:01:55.5]} 66. Ra5 {[%clk 0:01:38.9]} 66... Kd7 {[%clk 0:01:54]} 67. Rb5 {[%clk
0:01:37.3]} 67... Ke6 {[%clk 0:01:54.2]} 68. Ra5 {[%clk 0:01:36.4]} 68... Rb6
{[%clk 0:01:54.1]} 69. Kg1 {[%clk 0:01:35.9]} 69... Kf6 {[%clk 0:01:50.4]} 70.
Kg2 {[%clk 0:01:35.4]} 70... Kg7 {[%clk 0:01:50.2]} 71. Ra7+ {[%clk 0:01:34.2]}
71... Kh6 {[%clk 0:01:48.6]} 72. Re7 {[%clk 0:01:32.7]} 72... Rf6 {[%clk
0:01:48.4]} 73. Kh2 {[%clk 0:01:29.1]} 73... Rd6 {[%clk 0:01:48]} 74. Kg2 {[%clk
0:01:29.3]} 74... Rd3 {[%clk 0:01:47.1]} 75. Ra7 {[%clk 0:01:25.5]} 75... Rd2
{[%clk 0:01:46.7]} 76. Kg1 {[%clk 0:01:25.2]} 76... Re2 {[%clk 0:01:46.6]} 77.
Kf1 {[%clk 0:01:25.1]} 77... Rb2 {[%clk 0:01:45.4]} 78. Kg1 {[%clk 0:01:25.4]}
78... Rb3 {[%clk 0:01:45.9]} 79. Kg2 {[%clk 0:01:25.5]} 79... e3 {[%clk
0:01:45.5]} 80. fxe3 {[%clk 0:01:25.7]} 80... Rxe3 {[%clk 0:01:45.8]} 81. Kf2
{[%clk 0:01:26.2]} 81... Rc3 {[%clk 0:01:44.9]} 82. Kg2 {[%clk 0:01:25.1]} 82...
Rc6 {[%clk 0:01:44.8]} 83. Rb7 {[%clk 0:01:25]} 83... g5 {[%clk 0:01:44.8]} 84.
hxg5+ {[%clk 0:01:24.5]} 84... Kxg5 {[%clk 0:01:45.7]} 85. Rg7+ {[%clk
0:01:24.5]} 85... Kf6 {[%clk 0:01:46]} 86. Rh7 {[%clk 0:01:24.2]} 86... Kg6
{[%clk 0:01:46.2]} 87. Rh8 {[%clk 0:01:24.6]} 87... Rc2+ {[%clk 0:01:44.1]} 88.
Kf3 {[%clk 0:01:24.1]} 88... Rc3+ {[%clk 0:01:44.4]} 89. Kg2 {[%clk 0:01:24]}
89... Rc7 {[%clk 0:01:42.7]} 90. Rg8+ {[%clk 0:01:23.4]} 90... Rg7 {[%clk
0:01:42.8]} 91. Rb8 {[%clk 0:01:17.5]} 91... Kg5 {[%clk 0:01:42.7]} 92. Rb4
{[%clk 0:01:17.6]} 92... Rc7 {[%clk 0:01:41.8]} 93. Ra4 {[%clk 0:01:17]} 93...
Re7 {[%clk 0:01:41]} 94. Rb4 {[%clk 0:01:16.7]} 94... Re4 {[%clk 0:01:41.1]} 95.
Rb8 {[%clk 0:01:16.8]} 95... Re6 {[%clk 0:01:38.3]} 96. Rb4 {[%clk 0:01:15.8]}
96... Re4 {[%clk 0:01:37.8]} 97. Rb8 {[%clk 0:01:15.6]} 97... Re6 {[%clk
0:01:35.5]} 98. Rb4 {[%clk 0:01:15.4]} 98... Rh6 {[%clk 0:01:34.7]} 99. Ra4
{[%clk 0:01:14.5]} 99... h4 {[%clk 0:01:33.7]} 100. gxh4+ {[%clk 0:01:15.4]}
100... Rxh4 {[%clk 0:01:34.2]} 101. Rxh4 {[%clk 0:01:15.4]} 101... Kxh4 {[%clk
0:01:35.1]} 102. Kf3 {[%clk 0:01:16.1]} 102... Kg5 {[%clk 0:01:35.6]} 103. Kg3
{[%clk 0:01:16.6]} 103... f4+ {[%clk 0:01:36.4]} 104. Kf3 {[%clk 0:01:17.1]}
104... Kf5 {[%clk 0:01:37.3]} 105. Kf2 {[%clk 0:01:17.6]} 105... Kg4 {[%clk
0:01:38.2]} 106. Kg2 {[%clk 0:01:18]} 106... f3+ {[%clk 0:01:38.9]} 107. Kf2
{[%clk 0:01:18.5]} 107... Kf4 {[%clk 0:01:39.6]} 108. Kf1 {[%clk 0:01:18.9]}
108... Ke5 {[%clk 0:01:39.9]} 109. Kf2 {[%clk 0:01:18.3]} 109... Ke4 {[%clk
0:01:40.5]} 110. Kf1 {[%clk 0:01:18.7]} 110... Kf5 {[%clk 0:01:40]} 111. Kf2
{[%clk 0:01:18.8]} 111... Kg4 {[%clk 0:01:40.9]} 112. Kf1 {[%clk 0:01:19.2]}
112... Kg3 {[%clk 0:01:41.3]} 113. Kg1 {[%clk 0:01:19.6]} 113... f2+ {[%clk
0:01:42.2]} 114. Kf1 {[%clk 0:01:19.9]} 114... Kf3 {[%clk 0:01:43.1]} 1/2-1/2

[Event "Early-Titled-Tuesday-Blitz-April-23-2024"]
[Site "Chess.com"]
[Date "2024.04.23"]
[Round "2"]
[White "Chernov_Alexander_A"]
[Black "Barath1308"]
[Result "0-1"]
[WhiteElo "2257"]
[BlackElo "2520"]
[TimeControl "180+1"]
[EndTime "8:18:08 PDT"]
[Termination "Barath1308 won on time"]

1. e4 {[%clk 0:03:00.9]} 1... c5 {[%clk 0:02:59.5]} 2. Nf3 {[%clk 0:03:00]} 2...
d6 {[%clk 0:03:00]} 3. c3 {[%clk 0:02:58.2]} 3... Nf6 {[%clk 0:02:58.7]} 4. Bb5+
{[%clk 0:02:55.7]} 4... Bd7 {[%clk 0:02:57.7]} 5. Bxd7+ {[%clk 0:02:55.3]} 5...
Qxd7 {[%clk 0:02:58.6]} 6. Qe2 {[%clk 0:02:55.2]} 6... Nc6 {[%clk 0:02:57.8]} 7.
O-O {[%clk 0:02:54.5]} 7... e6 {[%clk 0:02:58.3]} 8. Rd1 {[%clk 0:02:54.1]} 8...
Be7 {[%clk 0:02:58.2]} 9. d4 {[%clk 0:02:53.9]} 9... cxd4 {[%clk 0:02:58.4]} 10.
cxd4 {[%clk 0:02:50.4]} 10... d5 {[%clk 0:02:59.3]} 11. e5 {[%clk 0:02:49.4]}
11... Ne4 {[%clk 0:02:59.4]} 12. Be3 {[%clk 0:02:49.3]} 12... O-O {[%clk
0:02:58]} 13. Ne1 {[%clk 0:02:49.2]} 13... f6 {[%clk 0:02:50.4]} 14. f3 {[%clk
0:02:48.7]} 14... Ng5 {[%clk 0:02:50.3]} 15. Nc3 {[%clk 0:02:31.9]} 15... fxe5
{[%clk 0:02:35.5]} 16. dxe5 {[%clk 0:02:30]} 16... Nf7 {[%clk 0:02:30.9]} 17. f4
{[%clk 0:02:28.9]} 17... Nh6 {[%clk 0:02:27.7]} 18. Nf3 {[%clk 0:02:14.6]} 18...
Nf5 {[%clk 0:02:26.2]} 19. Bf2 {[%clk 0:02:13.2]} 19... Qe8 {[%clk 0:02:15]} 20.
Nb5 {[%clk 0:02:05.9]} 20... Qg6 {[%clk 0:02:13.4]} 21. Kh1 {[%clk 0:01:58.5]}
21... a6 {[%clk 0:02:11.3]} 22. Nc3 {[%clk 0:01:53.5]} 22... Qg4 {[%clk
0:02:04.5]} 23. g3 {[%clk 0:01:47.2]} 23... h5 {[%clk 0:01:50.4]} 24. Ng1 {[%clk
0:01:41.3]} 24... Qg6 {[%clk 0:01:48.1]} 25. Qf3 {[%clk 0:01:28.3]} 25... Nh6
{[%clk 0:01:41]} 26. Qg2 {[%clk 0:01:20.1]} 26... h4 {[%clk 0:01:34.7]} 27. Nge2
{[%clk 0:01:07.6]} 27... Ng4 {[%clk 0:01:22.5]} 28. Bg1 {[%clk 0:01:01.7]} 28...
Qh5 {[%clk 0:01:14.2]} 29. h3 {[%clk 0:00:59.4]} 29... hxg3 {[%clk 0:01:11]} 30.
Qxg3 {[%clk 0:00:54.5]} 30... Nh6 {[%clk 0:01:10.4]} 31. Bh2 {[%clk 0:00:49.8]}
31... Nf5 {[%clk 0:01:08.5]} 32. Qg4 {[%clk 0:00:49.4]} 32... Qxg4 {[%clk
0:00:57]} 33. hxg4 {[%clk 0:00:49.2]} 33... Ne3 {[%clk 0:00:57.9]} 34. Rg1
{[%clk 0:00:48.5]} 34... g5 {[%clk 0:00:57.7]} 35. fxg5 {[%clk 0:00:37.5]} 35...
Bxg5 {[%clk 0:00:56.7]} 36. Rg3 {[%clk 0:00:34.7]} 36... Kg7 {[%clk 0:00:56.2]}
37. Rh3 {[%clk 0:00:32.6]} 37... Rh8 {[%clk 0:00:53]} 38. Rxh8 {[%clk 0:00:29]}
38... Rxh8 {[%clk 0:00:53.9]} 39. Kg1 {[%clk 0:00:27.5]} 39... Nxg4 {[%clk
0:00:53]} 40. Bg3 {[%clk 0:00:25.9]} 40... Ngxe5 {[%clk 0:00:49.5]} 41. Rf1
{[%clk 0:00:14.6]} 41... Kg6 {[%clk 0:00:49.3]} 42. Kg2 {[%clk 0:00:13.3]} 42...
Nc4 {[%clk 0:00:48]} 43. Bf2 {[%clk 0:00:09.5]} 43... Nxb2 {[%clk 0:00:42.5]}
44. Bd4 {[%clk 0:00:06.4]} 44... e5 {[%clk 0:00:41.4]} 45. Bc5 {[%clk
0:00:03.3]} 45... Nd3 {[%clk 0:00:38.2]} 46. Bg1 {[%clk 0:00:01.3]} 46... d4
{[%clk 0:00:38.3]} 0-1

[Event "Early-Titled-Tuesday-Blitz-April-23-2024"]
[Site "Chess.com"]
[Date "2024.04.23"]
[Round "2"]
[White "michaelq2d5"]
[Black "SlavenPastar"]
[Result "1-0"]
[WhiteElo "2935"]
[BlackElo "2623"]
[TimeControl "180+1"]
[EndTime "8:18:09 PDT"]
[Termination "michaelq2d5 won by resignation"]

1. d4 {[%clk 0:03:00.9]} 1... b6 {[%clk 0:03:00.3]} 2. c4 {[%clk 0:03:01]} 2...
Bb7 {[%clk 0:03:01]} 3. Nc3 {[%clk 0:03:01.8]} 3... Nf6 {[%clk 0:03:01.1]} 4. d5
{[%clk 0:03:01.7]} 4... e6 {[%clk 0:02:57.4]} 5. a3 {[%clk 0:03:02.1]} 5... exd5
{[%clk 0:02:51.3]} 6. cxd5 {[%clk 0:03:02.3]} 6... Be7 {[%clk 0:02:47.6]} 7. Nf3
{[%clk 0:03:02.2]} 7... O-O {[%clk 0:02:47]} 8. e4 {[%clk 0:02:58]} 8... Re8
{[%clk 0:02:46.8]} 9. Bd3 {[%clk 0:02:58.1]} 9... c6 {[%clk 0:02:39.4]} 10. dxc6
{[%clk 0:02:57.5]} 10... dxc6 {[%clk 0:02:38.1]} 11. O-O {[%clk 0:02:57.8]}
11... Nbd7 {[%clk 0:02:33.7]} 12. e5 {[%clk 0:02:42.6]} 12... Nd5 {[%clk
0:02:20.3]} 13. Ne4 {[%clk 0:02:37.1]} 13... Qc7 {[%clk 0:02:12.2]} 14. Neg5
{[%clk 0:01:46]} 14... Nf8 {[%clk 0:02:04.6]} 15. Re1 {[%clk 0:01:39.9]} 15...
h6 {[%clk 0:02:04]} 16. Ne4 {[%clk 0:01:29.7]} 16... Rad8 {[%clk 0:02:04]} 17.
Qc2 {[%clk 0:01:28.8]} 17... Nd7 {[%clk 0:01:51.5]} 18. e6 {[%clk 0:00:56]}
18... fxe6 {[%clk 0:01:50.4]} 19. Ng3 {[%clk 0:00:56.5]} 19... Nf8 {[%clk
0:01:33.9]} 20. Nh5 {[%clk 0:00:56.9]} 20... Bf6 {[%clk 0:01:22.1]} 21. Bd2
{[%clk 0:00:51.7]} 21... c5 {[%clk 0:01:16.4]} 22. Rad1 {[%clk 0:00:49.4]} 22...
Qf7 {[%clk 0:01:10.8]} 23. Nxf6+ {[%clk 0:00:48.5]} 23... Qxf6 {[%clk
0:01:06.9]} 24. Ne5 {[%clk 0:00:49]} 24... Nf4 {[%clk 0:00:47.1]} 25. Bf1 {[%clk
0:00:49.3]} 25... Rd5 {[%clk 0:00:31.7]} 26. Bc3 {[%clk 0:00:43.3]} 26... Rxd1
{[%clk 0:00:26.2]} 27. Qxd1 {[%clk 0:00:40.9]} 27... Qg5 {[%clk 0:00:21.4]} 28.
g3 {[%clk 0:00:41.4]} 28... N8g6 {[%clk 0:00:16.9]} 29. Qd7 {[%clk 0:00:35.8]}
29... Re7 {[%clk 0:00:15.6]} 30. Qd8+ {[%clk 0:00:35]} 30... Kh7 {[%clk
0:00:14.7]} 31. Nxg6 {[%clk 0:00:19.7]} 31... Nxg6 {[%clk 0:00:15.6]} 32. Bd3
{[%clk 0:00:19.9]} 32... Qd5 {[%clk 0:00:13.6]} 33. Qxd5 {[%clk 0:00:19.7]}
33... Bxd5 {[%clk 0:00:13.3]} 34. f4 {[%clk 0:00:19.5]} 34... h5 {[%clk
0:00:10.9]} 35. Re5 {[%clk 0:00:17.8]} 35... Kh6 {[%clk 0:00:10.6]} 36. Rg5
{[%clk 0:00:18.2]} 36... Nf8 {[%clk 0:00:08]} 37. Be5 {[%clk 0:00:17.2]} 37...
g6 {[%clk 0:00:08.3]} 38. Bd6 {[%clk 0:00:17.8]} 38... Rf7 {[%clk 0:00:08.3]}
39. Bxf8+ {[%clk 0:00:18.3]} 39... Rxf8 {[%clk 0:00:09.2]} 40. Rxg6+ {[%clk
0:00:19]} 40... Kh7 {[%clk 0:00:09]} 41. Rxe6+ {[%clk 0:00:19.5]} 41... Kg7
{[%clk 0:00:08.9]} 42. Re5 {[%clk 0:00:20.2]} 42... Bf7 {[%clk 0:00:09]} 43. Kf2
{[%clk 0:00:20.1]} 43... Rd8 {[%clk 0:00:08.4]} 44. Ke3 {[%clk 0:00:20.8]} 44...
Kf6 {[%clk 0:00:08.1]} 45. Rf5+ {[%clk 0:00:20.9]} 45... Ke6 {[%clk 0:00:07.9]}
46. Re5+ {[%clk 0:00:21.3]} 46... Kf6 {[%clk 0:00:08.3]} 47. Be2 {[%clk
0:00:21.4]} 47... Rh8 {[%clk 0:00:06.7]} 48. h4 {[%clk 0:00:21.7]} 48... Be6
{[%clk 0:00:06.5]} 49. Rxh5 {[%clk 0:00:21.6]} 49... Re8 {[%clk 0:00:04.7]} 50.
Re5 {[%clk 0:00:21.9]} 50... Rg8 {[%clk 0:00:05]} 51. Rxe6+ {[%clk 0:00:22.2]}
51... Kxe6 {[%clk 0:00:05.1]} 52. Bc4+ {[%clk 0:00:22.7]} 1-0

[Event "Early-Titled-Tuesday-Blitz-April-23-2024"]
[Site "Chess.com"]
[Date "2024.04.23"]
[Round "2"]
[White "aljado"]
[Black "kuchma777"]
[Result "0-1"]
[WhiteElo "2142"]
[BlackElo "2482"]
[TimeControl "180+1"]
[EndTime "8:18:09 PDT"]
[Termination "kuchma777 won on time"]

1. e4 {[%clk 0:03:00.9]} 1... c6 {[%clk 0:02:57.7]} 2. d4 {[%clk 0:02:59.6]}
2... d5 {[%clk 0:02:58.2]} 3. exd5 {[%clk 0:03:00.1]} 3... cxd5 {[%clk
0:02:59.1]} 4. c4 {[%clk 0:03:00.1]} 4... Nc6 {[%clk 0:02:59.4]} 5. Nc3 {[%clk
0:02:59.8]} 5... Nf6 {[%clk 0:02:59.1]} 6. Bg5 {[%clk 0:02:57.9]} 6... e6 {[%clk
0:02:56.3]} 7. Nf3 {[%clk 0:02:55.3]} 7... Be7 {[%clk 0:02:51.3]} 8. c5 {[%clk
0:02:53.5]} 8... O-O {[%clk 0:02:47.4]} 9. a3 {[%clk 0:02:52.5]} 9... a5 {[%clk
0:02:46.5]} 10. Bd3 {[%clk 0:02:49.5]} 10... b6 {[%clk 0:02:44.2]} 11. cxb6
{[%clk 0:02:42.1]} 11... Qxb6 {[%clk 0:02:42.7]} 12. O-O {[%clk 0:02:41.7]}
12... h6 {[%clk 0:02:41.8]} 13. Bh4 {[%clk 0:02:35.7]} 13... Qxb2 {[%clk
0:02:36]} 14. Nb5 {[%clk 0:02:28.2]} 14... a4 {[%clk 0:02:08.7]} 15. Rb1 {[%clk
0:02:14.3]} 15... Qa2 {[%clk 0:02:07]} 16. Qc1 {[%clk 0:01:57.9]} 16... Na5
{[%clk 0:01:52.8]} 17. Bxf6 {[%clk 0:01:34.2]} 17... Bxf6 {[%clk 0:01:48.1]} 18.
Nc3 {[%clk 0:01:33.1]} 18... Qb3 {[%clk 0:01:32]} 19. Rxb3 {[%clk 0:01:31.3]}
19... axb3 {[%clk 0:01:32.9]} 20. Qb1 {[%clk 0:01:17.6]} 20... Ba6 {[%clk
0:01:30.6]} 21. Bxa6 {[%clk 0:01:15.8]} 21... Rxa6 {[%clk 0:01:31.5]} 22. Nb5
{[%clk 0:01:09.6]} 22... Rb8 {[%clk 0:01:27.1]} 23. a4 {[%clk 0:01:09.2]} 23...
g5 {[%clk 0:01:13.2]} 24. h3 {[%clk 0:01:06.2]} 24... Rc6 {[%clk 0:01:07.6]} 25.
Rc1 {[%clk 0:01:02.7]} 25... Rxc1+ {[%clk 0:00:54.8]} 26. Qxc1 {[%clk
0:01:01.6]} 26... Nc4 {[%clk 0:00:55.7]} 27. Qb1 {[%clk 0:00:48.1]} 27... b2
{[%clk 0:00:46.8]} 28. Ne1 {[%clk 0:00:46.6]} 28... Ra8 {[%clk 0:00:34]} 29. Nd3
{[%clk 0:00:37]} 29... Rxa4 {[%clk 0:00:34]} 30. Nxb2 {[%clk 0:00:35.9]} 30...
Rb4 {[%clk 0:00:34.1]} 31. Qa1 {[%clk 0:00:23.7]} 31... Rxb2 {[%clk 0:00:32.2]}
32. Nd6 {[%clk 0:00:21]} 32... Bxd4 {[%clk 0:00:27.4]} 33. Qa8+ {[%clk
0:00:15.5]} 33... Kg7 {[%clk 0:00:27]} 34. Nxc4 {[%clk 0:00:12.7]} 34... dxc4
{[%clk 0:00:21.5]} 35. Qe4 {[%clk 0:00:11.6]} 35... e5 {[%clk 0:00:16.5]} 36.
Kf1 {[%clk 0:00:07.7]} 36... Rxf2+ {[%clk 0:00:16.1]} 37. Ke1 {[%clk 0:00:06.9]}
37... c3 {[%clk 0:00:16.4]} 38. Kd1 {[%clk 0:00:05.3]} 38... c2+ {[%clk
0:00:15.2]} 39. Kc1 {[%clk 0:00:04.7]} 39... f5 {[%clk 0:00:07.6]} 40. Qb7+
{[%clk 0:00:03.6]} 40... Kg6 {[%clk 0:00:08.3]} 41. Qc6+ {[%clk 0:00:02.3]}
41... Kh5 {[%clk 0:00:08]} 0-1

[Event "Early-Titled-Tuesday-Blitz-April-23-2024"]
[Site "Chess.com"]
[Date "2024.04.23"]
[Round "2"]
[White "Zhigalko_Sergei"]
[Black "Aryan_Tamadon"]
[Result "1-0"]
[WhiteElo "2944"]
[BlackElo "2627"]
[TimeControl "180+1"]
[EndTime "8:18:11 PDT"]
[Termination "Zhigalko_Sergei won by resignation"]

1. e4 {[%clk 0:03:00.9]} 1... d5 {[%clk 0:02:59.7]} 2. exd5 {[%clk 0:03:01]}
2... Qxd5 {[%clk 0:03:00.6]} 3. Nc3 {[%clk 0:03:01.4]} 3... Qd6 {[%clk
0:03:01.2]} 4. d4 {[%clk 0:03:01.7]} 4... Nf6 {[%clk 0:03:01.8]} 5. Nf3 {[%clk
0:03:01.8]} 5... Nc6 {[%clk 0:03:02.5]} 6. Nb5 {[%clk 0:02:58.1]} 6... Qd8
{[%clk 0:03:02.5]} 7. Bf4 {[%clk 0:02:46.4]} 7... Nd5 {[%clk 0:03:02.5]} 8. Bg3
{[%clk 0:02:46.8]} 8... a6 {[%clk 0:03:01.7]} 9. Nc3 {[%clk 0:02:41.7]} 9... Bg4
{[%clk 0:02:43.2]} 10. h3 {[%clk 0:02:17.7]} 10... Bh5 {[%clk 0:02:40.6]} 11.
Be2 {[%clk 0:02:12.8]} 11... Nxc3 {[%clk 0:02:12.1]} 12. bxc3 {[%clk 0:02:12.7]}
12... e6 {[%clk 0:02:12.8]} 13. Rb1 {[%clk 0:02:12]} 13... Na5 {[%clk
0:01:58.8]} 14. Ne5 {[%clk 0:01:52.9]} 14... Bxe2 {[%clk 0:01:58.5]} 15. Qxe2
{[%clk 0:01:53.8]} 15... Bd6 {[%clk 0:01:48.4]} 16. Nxf7 {[%clk 0:01:49.7]}
16... Kxf7 {[%clk 0:01:26.4]} 17. Qh5+ {[%clk 0:01:49.6]} 17... g6 {[%clk
0:01:05.8]} 18. Qxa5 {[%clk 0:01:49.4]} 18... Bxg3 {[%clk 0:00:39.9]} 19. fxg3
{[%clk 0:01:48.8]} 19... b5 {[%clk 0:00:40.7]} 20. O-O+ {[%clk 0:01:45.6]} 20...
Kg7 {[%clk 0:00:40.4]} 21. Rbe1 {[%clk 0:01:29.9]} 21... Qd6 {[%clk 0:00:33.1]}
22. Re5 {[%clk 0:01:07.3]} 22... Rhf8 {[%clk 0:00:28.6]} 23. Rfe1 {[%clk
0:01:07.2]} 23... Rf6 {[%clk 0:00:25.5]} 24. Kh2 {[%clk 0:00:57.2]} 24... Raf8
{[%clk 0:00:18.8]} 25. a4 {[%clk 0:00:57.4]} 25... bxa4 {[%clk 0:00:11.2]} 26.
Qxa4 {[%clk 0:00:57.8]} 26... h5 {[%clk 0:00:10.5]} 27. Qc4 {[%clk 0:00:57.5]}
27... h4 {[%clk 0:00:07]} 28. gxh4 {[%clk 0:00:54.2]} 28... Rf2 {[%clk
0:00:05.1]} 29. Re2 {[%clk 0:00:46.6]} 29... R8f6 {[%clk 0:00:04.5]} 30. Rxf2
{[%clk 0:00:21.2]} 30... Rxf2 {[%clk 0:00:04.6]} 31. Qxe6 {[%clk 0:00:21.8]}
31... Rxc2 {[%clk 0:00:04.6]} 32. Qxd6 {[%clk 0:00:17.9]} 32... cxd6 {[%clk
0:00:05.5]} 33. Ra5 {[%clk 0:00:14.8]} 33... Rxc3 {[%clk 0:00:04.5]} 34. Rxa6
{[%clk 0:00:15.1]} 34... d5 {[%clk 0:00:02.6]} 35. Rd6 {[%clk 0:00:15]} 35...
Rd3 {[%clk 0:00:02.2]} 36. Rxd5 {[%clk 0:00:15.4]} 36... Kf6 {[%clk 0:00:03.1]}
37. h5 {[%clk 0:00:14.3]} 37... Ke6 {[%clk 0:00:01.3]} 38. Rg5 {[%clk
0:00:11.7]} 38... Kf6 {[%clk 0:00:01.5]} 39. Rxg6+ {[%clk 0:00:11.7]} 39... Kf7
{[%clk 0:00:02.1]} 40. Rg4 {[%clk 0:00:12.1]} 40... Rd2 {[%clk 0:00:01.6]} 41.
h6 {[%clk 0:00:12.3]} 41... Kf6 {[%clk 0:00:01.6]} 42. h7 {[%clk 0:00:12.4]}
42... Kf7 {[%clk 0:00:02]} 43. h8=Q {[%clk 0:00:12.3]} 1-0